[Event "Titled Tuesday Blitz February 01 B 2022"]
[White "Moroni, Luca Jr"]
[Black "Cori T., Deysi"]
[WhiteFideId "865834"]
[BlackFideId "3801934"]
[WhiteElo "2573"]
[BlackElo "2350"]
[Result "1-0"]
[Round "09"]
[TimeControl "180+1"]
[Date "2022.02.01"]
[WhiteClock "0:00:23"]
[BlackClock "0:00:09"]

1. d4 {[%clk 0:03:00]}  f5 {[%clk 0:02:58]} 2. Nf3 {[%clk 0:02:59]}  Nf6 {[%clk 0:02:58]} 3. g3 {[%clk 0:03:00]}  g6 {[%clk 0:02:58]} 4. Bg2 {[%clk 0:03:00]}  Bg7 {[%clk 0:02:59]} 5. b3 {[%clk 0:03:01]}  d6 {[%clk 0:02:58]} 6. Bb2 {[%clk 0:03:01]}  O-O {[%clk 0:02:59]} 7. O-O {[%clk 0:03:02]}  c6 {[%clk 0:02:59]} 8. c4 {[%clk 0:03:02]}  Bd7 {[%clk 0:02:58]} 9. Nbd2 {[%clk 0:03:01]}  Qe8 {[%clk 0:02:58]} 10. Qc2 {[%clk 0:03:00]}  Na6 {[%clk 0:02:57]} 11. Rae1 {[%clk 0:02:58]}  Kh8 {[%clk 0:02:42]} 12. a3 {[%clk 0:02:58]}  Nc7 {[%clk 0:02:39]} 13. e4 {[%clk 0:02:57]}  f4 {[%clk 0:02:39]} 14. e5 {[%clk 0:02:54]}  dxe5 {[%clk 0:02:38]} 15. Nxe5 {[%clk 0:02:48]}  Rd8 {[%clk 0:02:38]} 16. Ndf3 {[%clk 0:02:42]}  Nh5 {[%clk 0:02:25]} 17. g4 {[%clk 0:02:38]}  Nf6 {[%clk 0:02:25]} 18. h3 {[%clk 0:02:37]}  Ne6 {[%clk 0:02:21]} 19. Re2 {[%clk 0:02:16]}  Bc8 {[%clk 0:02:21]} 20. Rfe1 {[%clk 0:02:15]}  Ng8 {[%clk 0:02:08]} 21. g5 {[%clk 0:02:12]}  Nc7 {[%clk 0:02:03]} 22. Nh4 {[%clk 0:02:06]}  Bf5 {[%clk 0:02:02]} 23. Nxf5 {[%clk 0:02:05]}  Rxf5 {[%clk 0:02:03]} 24. h4 {[%clk 0:02:02]}  f3 {[%clk 0:01:59]} 25. Nxf3 {[%clk 0:02:01]}  Rf4 {[%clk 0:01:52]} 26. d5 {[%clk 0:01:59]}  Qf8 {[%clk 0:01:50]} 27. dxc6 {[%clk 0:01:57]}  bxc6 {[%clk 0:01:49]} 28. Bxg7+ {[%clk 0:01:51]}  Qxg7 {[%clk 0:01:49]} 29. Re3 {[%clk 0:01:39]}  Rdf8 {[%clk 0:01:48]} 30. Qd2 {[%clk 0:01:35]}  Ne8 {[%clk 0:01:42]} 31. Qd7 {[%clk 0:01:16]}  Nd6 {[%clk 0:01:32]} 32. Qxa7 {[%clk 0:00:57]}  Nf5 {[%clk 0:01:31]} 33. Rd3 {[%clk 0:00:57]}  Nxh4 {[%clk 0:01:30]} 34. Nxh4 {[%clk 0:00:58]}  Rxh4 {[%clk 0:01:30]} 35. Rf3 {[%clk 0:00:52]}  h6 {[%clk 0:00:13]} 36. gxh6 {[%clk 0:00:41]}  Qxh6 {[%clk 0:00:12]} 37. Rxf8 {[%clk 0:00:37]}  Qxf8 {[%clk 0:00:12]} 38. Qe3 {[%clk 0:00:37]}  Qf6 {[%clk 0:00:11]} 39. Qe5 {[%clk 0:00:34]}  Rg4 {[%clk 0:00:10]} 40. a4 {[%clk 0:00:26]}  Kg7 {[%clk 0:00:07]} 41. a5 {[%clk 0:00:24]}  Rg5 {[%clk 0:00:07]} 42. Qxf6+ {[%clk 0:00:24]}  Nxf6 {[%clk 0:00:07]} 43. Ra1 {[%clk 0:00:19]}  Ne8 {[%clk 0:00:05]} 44. a6 {[%clk 0:00:18]}  Nc7 {[%clk 0:00:06]} 45. a7 {[%clk 0:00:19]}  Na8 {[%clk 0:00:06]} 46. Kf1 {[%clk 0:00:19]}  Rc5 {[%clk 0:00:04]} 47. Ra6 {[%clk 0:00:18]}  Kf7 {[%clk 0:00:03]} 48. Bxc6 {[%clk 0:00:17]}  Nc7 {[%clk 0:00:02]} 49. a8=Q {[%clk 0:00:17]}  Nxa8 {[%clk 0:00:02]} 50. Bxa8 {[%clk 0:00:18]}  Rf5 {[%clk 0:00:02]} 51. Be4 {[%clk 0:00:18]}  Rf4 {[%clk 0:00:03]} 52. f3 {[%clk 0:00:18]}  Rh4 {[%clk 0:00:03]} 53. Rxg6 {[%clk 0:00:16]}  Rxe4 {[%clk 0:00:02]} 54. fxe4 {[%clk 0:00:16]}  Kxg6 {[%clk 0:00:03]} 55. Ke2 {[%clk 0:00:16]}  Kf6 {[%clk 0:00:04]} 56. Ke3 {[%clk 0:00:17]}  Ke5 {[%clk 0:00:04]} 57. Kd3 {[%clk 0:00:18]}  Kd6 {[%clk 0:00:05]} 58. Kd4 {[%clk 0:00:18]}  e5+ {[%clk 0:00:05]} 59. Kc3 {[%clk 0:00:18]}  Kc5 {[%clk 0:00:06]} 60. b4+ {[%clk 0:00:19]}  Kc6 {[%clk 0:00:07]} 61. c5 {[%clk 0:00:19]}  Kb5 {[%clk 0:00:07]} 62. Kb3 {[%clk 0:00:19]}  Kc6 {[%clk 0:00:08]} 63. Kc4 {[%clk 0:00:20]}  Kc7 {[%clk 0:00:09]} 64. b5 {[%clk 0:00:21]}  Kd7 {[%clk 0:00:10]} 65. Kd5 {[%clk 0:00:22]}  Ke7 {[%clk 0:00:09]} 66. Kxe5 {[%clk 0:00:23]} 1-0


[Site "https://www.chess.com"]

[Event "Titled Tuesday Blitz February 01 B 2022"]
[White "Naroditsky, Daniel"]
[Black "Steinberg, Nitzan"]
[WhiteFideId "2026961"]
[BlackFideId "2801795"]
[WhiteElo "2608"]
[BlackElo "2440"]
[Result "1-0"]
[Round "09"]
[TimeControl "180+1"]
[Date "2022.02.01"]
[WhiteClock "0:00:06"]
[BlackClock "0:00:02"]

1. e4 {[%clk 0:03:00]}  c5 {[%clk 0:02:59]} 2. Nf3 {[%clk 0:03:00]}  d6 {[%clk 0:03:00]} 3. Bb5+ {[%clk 0:03:00]}  Bd7 {[%clk 0:02:59]} 4. Bxd7+ {[%clk 0:02:55]}  Nxd7 {[%clk 0:02:58]} 5. O-O {[%clk 0:02:55]}  Ngf6 {[%clk 0:02:59]} 6. Re1 {[%clk 0:02:56]}  g6 {[%clk 0:02:59]} 7. c3 {[%clk 0:02:55]}  Bg7 {[%clk 0:02:59]} 8. d4 {[%clk 0:02:55]}  O-O {[%clk 0:03:00]} 9. e5 {[%clk 0:02:51]}  dxe5 {[%clk 0:02:57]} 10. dxe5 {[%clk 0:02:52]}  Ng4 {[%clk 0:02:57]} 11. e6 {[%clk 0:02:50]}  Nde5 {[%clk 0:02:58]} 12. Nxe5 {[%clk 0:02:31]}  Nxe5 {[%clk 0:02:57]} 13. Qe2 {[%clk 0:02:11]}  fxe6 {[%clk 0:02:27]} 14. Rd1 {[%clk 0:02:11]}  Qc8 {[%clk 0:02:07]} 15. Be3 {[%clk 0:02:03]}  Qc6 {[%clk 0:01:57]} 16. Na3 {[%clk 0:01:56]}  a6 {[%clk 0:01:37]} 17. h3 {[%clk 0:01:36]}  b5 {[%clk 0:01:33]} 18. Bg5 {[%clk 0:01:30]}  Rf7 {[%clk 0:01:27]} 19. Nc2 {[%clk 0:01:24]}  Raf8 {[%clk 0:01:27]} 20. Bh4 {[%clk 0:01:25]}  Nc4 {[%clk 0:01:22]} 21. Rab1 {[%clk 0:01:25]}  Rf4 {[%clk 0:01:11]} 22. Bg3 {[%clk 0:01:24]}  Re4 {[%clk 0:01:09]} 23. Qf1 {[%clk 0:01:25]}  Be5 {[%clk 0:01:05]} 24. Bxe5 {[%clk 0:01:22]}  Rxe5 {[%clk 0:01:04]} 25. b3 {[%clk 0:01:00]}  Nd6 {[%clk 0:01:04]} 26. f3 {[%clk 0:01:01]}  Rg5 {[%clk 0:00:59]} 27. Qe2 {[%clk 0:00:50]}  Nf5 {[%clk 0:00:56]} 28. Ne3 {[%clk 0:00:43]}  Ng3 {[%clk 0:00:33]} 29. Qe1 {[%clk 0:00:29]}  Nh5 {[%clk 0:00:24]} 30. Ng4 {[%clk 0:00:27]}  Nf4 {[%clk 0:00:24]} 31. Qh4 {[%clk 0:00:23]}  Rh5 {[%clk 0:00:08]} 32. Qxe7 {[%clk 0:00:23]}  Nxh3+ {[%clk 0:00:06]} 33. gxh3 {[%clk 0:00:24]}  Qxf3 {[%clk 0:00:06]} 34. Qxe6+ {[%clk 0:00:22]}  Kh8 {[%clk 0:00:06]} 35. Qe3 {[%clk 0:00:13]}  Qc6 {[%clk 0:00:03]} 36. Rf1 {[%clk 0:00:11]}  Re8 {[%clk 0:00:03]} 37. Qf3 {[%clk 0:00:06]}  Qc7 {[%clk 0:00:02]} 38. Rbe1 {[%clk 0:00:05]}  Rd8 {[%clk 0:00:01]} 39. Qf6+ {[%clk 0:00:05]}  Kg8 {[%clk 0:00:02]} 40. Qe6+ {[%clk 0:00:06]}  Kh8 {[%clk 0:00:02]} 41. Qf6+ {[%clk 0:00:06]}  Kg8 {[%clk 0:00:03]} 42. Rf3 {[%clk 0:00:06]}  Rf5 {[%clk 0:00:02]} 43. Nh6# {[%clk 0:00:06]} 1-0


[Site "https://www.chess.com"]

[Event "Titled Tuesday Blitz February 01 B 2022"]
[White "Quintiliano Pinto, Renato R."]
[Black "Larino Nieto, David"]
[WhiteFideId "2117568"]
[BlackFideId "2256444"]
[WhiteElo "2439"]
[BlackElo "2532"]
[Result "1-0"]
[Round "09"]
[TimeControl "180+1"]
[Date "2022.02.01"]
[WhiteClock "0:01:44"]
[BlackClock "0:01:03"]

1. c4 {[%clk 0:03:00]}  e6 {[%clk 0:02:59]} 2. Nc3 {[%clk 0:03:00]}  b6 {[%clk 0:02:59]} 3. e4 {[%clk 0:03:00]}  Bb7 {[%clk 0:02:59]} 4. Bd3 {[%clk 0:03:00]}  c5 {[%clk 0:02:58]} 5. Nge2 {[%clk 0:03:00]}  Nc6 {[%clk 0:02:58]} 6. O-O {[%clk 0:02:59]}  g5 {[%clk 0:02:59]} 7. Bc2 {[%clk 0:02:52]}  Nd4 {[%clk 0:02:58]} 8. Nxd4 {[%clk 0:02:50]}  cxd4 {[%clk 0:02:59]} 9. Ne2 {[%clk 0:02:50]}  Bg7 {[%clk 0:02:58]} 10. d3 {[%clk 0:02:50]}  h5 {[%clk 0:02:58]} 11. f4 {[%clk 0:02:50]}  gxf4 {[%clk 0:02:57]} 12. Bxf4 {[%clk 0:02:49]}  Ne7 {[%clk 0:02:51]} 13. Bg5 {[%clk 0:02:45]}  f6 {[%clk 0:02:46]} 14. Bd2 {[%clk 0:02:32]}  h4 {[%clk 0:02:33]} 15. Nf4 {[%clk 0:02:22]}  Qc7 {[%clk 0:01:47]} 16. Nh5 {[%clk 0:02:19]}  Bf8 {[%clk 0:01:46]} 17. Nxf6+ {[%clk 0:02:16]}  Kd8 {[%clk 0:01:46]} 18. Qg4 {[%clk 0:02:15]}  Bc6 {[%clk 0:01:44]} 19. Bf4 {[%clk 0:02:12]}  e5 {[%clk 0:01:42]} 20. Bg5 {[%clk 0:02:11]}  Kc8 {[%clk 0:01:42]} 21. Nd5 {[%clk 0:02:09]}  Bxd5 {[%clk 0:01:36]} 22. cxd5 {[%clk 0:02:08]}  Kb7 {[%clk 0:01:34]} 23. Rac1 {[%clk 0:02:07]}  Qd6 {[%clk 0:01:29]} 24. Rf6 {[%clk 0:02:06]}  Qc7 {[%clk 0:01:21]} 25. Ba4 {[%clk 0:02:02]}  Qd8 {[%clk 0:01:15]} 26. Bxd7 {[%clk 0:01:59]}  Rg8 {[%clk 0:01:13]} 27. Bc6+ {[%clk 0:01:51]}  Nxc6 {[%clk 0:01:09]} 28. dxc6+ {[%clk 0:01:50]}  Ka6 {[%clk 0:01:03]} 29. Qd1 {[%clk 0:01:44]} 1-0


[Site "https://www.chess.com"]

[Event "Titled Tuesday Blitz February 01 B 2022"]
[White "Ramirez, Alejandro"]
[Black "Kobalia, Mikhail"]
[WhiteFideId "6500617"]
[BlackFideId "4119150"]
[WhiteElo "2694"]
[BlackElo "2667"]
[Result "1-0"]
[Round "09"]
[TimeControl "180+1"]
[Date "2022.02.01"]
[WhiteClock "0:00:14"]
[BlackClock "0:00:05"]

1. c4 {[%clk 0:03:00]}  c6 {[%clk 0:02:59]} 2. Nf3 {[%clk 0:03:01]}  d5 {[%clk 0:03:00]} 3. e3 {[%clk 0:03:02]}  Nf6 {[%clk 0:03:00]} 4. Nc3 {[%clk 0:03:02]}  e6 {[%clk 0:03:00]} 5. b3 {[%clk 0:03:03]}  Bd6 {[%clk 0:03:00]} 6. Bb2 {[%clk 0:03:04]}  O-O {[%clk 0:03:00]} 7. Be2 {[%clk 0:03:05]}  Re8 {[%clk 0:02:54]} 8. Qc2 {[%clk 0:03:01]}  e5 {[%clk 0:02:52]} 9. cxd5 {[%clk 0:03:00]}  cxd5 {[%clk 0:02:53]} 10. Nb5 {[%clk 0:03:01]}  Nc6 {[%clk 0:02:53]} 11. Nxd6 {[%clk 0:03:00]}  Qxd6 {[%clk 0:02:53]} 12. O-O {[%clk 0:02:57]}  d4 {[%clk 0:02:50]} 13. exd4 {[%clk 0:02:40]}  e4 {[%clk 0:02:48]} 14. Ne5 {[%clk 0:02:11]}  Nxd4 {[%clk 0:02:45]} 15. Bxd4 {[%clk 0:02:12]}  Qxd4 {[%clk 0:02:45]} 16. Nc4 {[%clk 0:02:12]}  Be6 {[%clk 0:02:26]} 17. Qc3 {[%clk 0:02:10]}  Red8 {[%clk 0:02:25]} 18. Rfd1 {[%clk 0:02:10]}  Rac8 {[%clk 0:02:24]} 19. Rac1 {[%clk 0:02:05]}  h6 {[%clk 0:02:15]} 20. h3 {[%clk 0:02:05]}  Qxc3 {[%clk 0:02:09]} 21. dxc3 {[%clk 0:02:05]}  Rxd1+ {[%clk 0:02:08]} 22. Rxd1 {[%clk 0:02:05]}  Nd5 {[%clk 0:02:08]} 23. Nd6 {[%clk 0:02:00]}  Rxc3 {[%clk 0:02:04]} 24. Nxe4 {[%clk 0:01:56]}  Rc2 {[%clk 0:02:04]} 25. Bc4 {[%clk 0:01:55]}  Nf4 {[%clk 0:01:51]} 26. Rd8+ {[%clk 0:01:46]}  Kh7 {[%clk 0:01:51]} 27. Bxe6 {[%clk 0:01:46]}  Nxe6 {[%clk 0:01:48]} 28. Rd7 {[%clk 0:01:47]}  Re2 {[%clk 0:01:35]} 29. f3 {[%clk 0:01:20]}  Nf4 {[%clk 0:01:23]} 30. Rxf7 {[%clk 0:01:17]}  Nxg2 {[%clk 0:01:21]} 31. Rxb7 {[%clk 0:00:53]}  Rxa2 {[%clk 0:01:18]} 32. Nf6+ {[%clk 0:00:42]}  Kg6 {[%clk 0:01:14]} 33. Ne8 {[%clk 0:00:42]}  Nf4 {[%clk 0:00:58]} 34. Rxg7+ {[%clk 0:00:39]}  Kf5 {[%clk 0:00:58]} 35. Rf7+ {[%clk 0:00:39]}  Ke5 {[%clk 0:00:52]} 36. h4 {[%clk 0:00:34]}  Ne2+ {[%clk 0:00:41]} 37. Kf1 {[%clk 0:00:31]}  Nd4 {[%clk 0:00:39]} 38. b4 {[%clk 0:00:27]}  Nf5 {[%clk 0:00:35]} 39. Ng7 {[%clk 0:00:21]}  Nxh4 {[%clk 0:00:23]} 40. b5 {[%clk 0:00:21]}  Ng6 {[%clk 0:00:20]} 41. Rf5+ {[%clk 0:00:18]}  Kd4 {[%clk 0:00:19]} 42. Rf6 {[%clk 0:00:17]}  Ne5 {[%clk 0:00:15]} 43. Nf5+ {[%clk 0:00:18]}  Kd3 {[%clk 0:00:12]} 44. f4 {[%clk 0:00:15]}  Ng4 {[%clk 0:00:10]} 45. Rg6 {[%clk 0:00:16]}  Nh2+ {[%clk 0:00:05]} 46. Kg1 {[%clk 0:00:14]} 1-0


[Site "https://www.chess.com"]

[Event "Titled Tuesday Blitz February 01 B 2022"]
[White "Senthil Maran K"]
[Black "Dobrov, Vladimir"]
[WhiteFideId "25035681"]
[BlackFideId "4136594"]
[WhiteElo "2194"]
[BlackElo "2614"]
[Result "0-1"]
[Round "09"]
[TimeControl "180+1"]
[Date "2022.02.01"]
[WhiteClock "0:00:03"]
[BlackClock "0:01:28"]

1. Nf3 {[%clk 0:02:44]}  d5 {[%clk 0:02:59]} 2. d4 {[%clk 0:02:44]}  Nf6 {[%clk 0:02:59]} 3. g3 {[%clk 0:02:44]}  Nbd7 {[%clk 0:02:55]} 4. Bg2 {[%clk 0:02:42]}  e6 {[%clk 0:02:55]} 5. O-O {[%clk 0:02:42]}  Be7 {[%clk 0:02:54]} 6. Nbd2 {[%clk 0:02:39]}  b5 {[%clk 0:02:54]} 7. a4 {[%clk 0:02:07]}  b4 {[%clk 0:02:54]} 8. c4 {[%clk 0:02:08]}  bxc3 {[%clk 0:02:53]} 9. bxc3 {[%clk 0:02:08]}  Ba6 {[%clk 0:02:53]} 10. c4 {[%clk 0:02:06]}  O-O {[%clk 0:02:52]} 11. Qc2 {[%clk 0:01:38]}  Rb8 {[%clk 0:02:31]} 12. Rd1 {[%clk 0:01:36]}  c5 {[%clk 0:02:08]} 13. cxd5 {[%clk 0:00:56]}  Nxd5 {[%clk 0:01:57]} 14. Ne4 {[%clk 0:00:50]}  Rc8 {[%clk 0:01:41]} 15. dxc5 {[%clk 0:00:28]}  Nxc5 {[%clk 0:01:41]} 16. Nfg5 {[%clk 0:00:13]}  Nxe4 {[%clk 0:01:36]} 17. Qxe4 {[%clk 0:00:13]}  Bxg5 {[%clk 0:01:36]} 18. Bb2 {[%clk 0:00:12]}  Bf6 {[%clk 0:01:34]} 19. Bd4 {[%clk 0:00:11]}  Bxd4 {[%clk 0:01:34]} 20. Rxd4 {[%clk 0:00:12]}  Qf6 {[%clk 0:01:33]} 21. h3 {[%clk 0:00:04]}  Nc3 {[%clk 0:01:31]} 22. Qh4 {[%clk 0:00:03]}  Qxd4 {[%clk 0:01:28]} 0-1


[Site "https://www.chess.com"]

[Event "Titled Tuesday Blitz February 01 B 2022"]
[White "Wachinger, Guenther"]
[Black "Rustemov, Alexander"]
[WhiteFideId "4604261"]
[BlackFideId "4119002"]
[WhiteElo "2212"]
[BlackElo "2768"]
[Result "1-0"]
[Round "09"]
[TimeControl "180+1"]
[Date "2022.02.01"]
[WhiteClock "0:00:46"]
[BlackClock "0:00:07"]

1. e4 {[%clk 0:03:00]}  e6 {[%clk 0:02:59]} 2. d4 {[%clk 0:03:00]}  d5 {[%clk 0:02:59]} 3. Nd2 {[%clk 0:03:01]}  dxe4 {[%clk 0:02:57]} 4. Nxe4 {[%clk 0:03:02]}  Bd7 {[%clk 0:02:57]} 5. Nf3 {[%clk 0:03:01]}  Bc6 {[%clk 0:02:58]} 6. Bd3 {[%clk 0:03:01]}  Nd7 {[%clk 0:02:58]} 7. Qe2 {[%clk 0:03:01]}  Ngf6 {[%clk 0:02:58]} 8. O-O {[%clk 0:03:01]}  Nxe4 {[%clk 0:02:49]} 9. Bxe4 {[%clk 0:03:02]}  Bxe4 {[%clk 0:02:48]} 10. Qxe4 {[%clk 0:03:03]}  c6 {[%clk 0:02:48]} 11. c4 {[%clk 0:03:03]}  Be7 {[%clk 0:02:47]} 12. b3 {[%clk 0:03:02]}  O-O {[%clk 0:02:46]} 13. Bb2 {[%clk 0:03:03]}  Re8 {[%clk 0:02:43]} 14. Rad1 {[%clk 0:03:01]}  Qa5 {[%clk 0:02:42]} 15. a4 {[%clk 0:02:57]}  Rad8 {[%clk 0:02:40]} 16. Rfe1 {[%clk 0:02:56]}  Nf6 {[%clk 0:02:12]} 17. Qc2 {[%clk 0:02:50]}  h6 {[%clk 0:02:05]} 18. Ne5 {[%clk 0:02:50]}  Qc7 {[%clk 0:01:50]} 19. Qe2 {[%clk 0:02:47]}  a5 {[%clk 0:01:50]} 20. h3 {[%clk 0:02:41]}  Nd7 {[%clk 0:01:46]} 21. Bc3 {[%clk 0:01:42]}  Nxe5 {[%clk 0:01:38]} 22. Qxe5 {[%clk 0:01:43]}  Qxe5 {[%clk 0:01:30]} 23. dxe5 {[%clk 0:01:43]}  b6 {[%clk 0:01:27]} 24. Bd4 {[%clk 0:01:41]}  Rb8 {[%clk 0:01:21]} 25. Bc3 {[%clk 0:01:39]}  Red8 {[%clk 0:01:11]} 26. Kf1 {[%clk 0:01:38]}  Kf8 {[%clk 0:00:50]} 27. Ke2 {[%clk 0:01:38]}  Ke8 {[%clk 0:00:49]} 28. f3 {[%clk 0:01:33]}  h5 {[%clk 0:00:46]} 29. Ke3 {[%clk 0:01:33]}  g6 {[%clk 0:00:45]} 30. Ke4 {[%clk 0:01:33]}  Rxd1 {[%clk 0:00:35]} 31. Rxd1 {[%clk 0:01:34]}  b5 {[%clk 0:00:22]} 32. axb5 {[%clk 0:01:30]}  cxb5 {[%clk 0:00:22]} 33. Bxa5 {[%clk 0:01:30]}  bxc4 {[%clk 0:00:18]} 34. bxc4 {[%clk 0:01:31]}  Rb2 {[%clk 0:00:18]} 35. Rd2 {[%clk 0:01:28]}  Rb1 {[%clk 0:00:18]} 36. Kd4 {[%clk 0:01:20]}  Rc1 {[%clk 0:00:15]} 37. Bc3 {[%clk 0:01:20]}  Bc5+ {[%clk 0:00:11]} 38. Kxc5 {[%clk 0:01:19]}  Rxc3 {[%clk 0:00:11]} 39. Kb5 {[%clk 0:01:12]}  Ke7 {[%clk 0:00:09]} 40. c5 {[%clk 0:01:12]}  Rb3+ {[%clk 0:00:08]} 41. Kc6 {[%clk 0:01:12]}  Re3 {[%clk 0:00:07]} 42. Kb6 {[%clk 0:01:10]}  Rb3+ {[%clk 0:00:05]} 43. Kc7 {[%clk 0:01:10]}  Rc3 {[%clk 0:00:02]} 44. c6 {[%clk 0:01:09]}  g5 {[%clk 0:00:03]} 45. Rd7+ {[%clk 0:01:08]}  Ke8 {[%clk 0:00:03]} 46. Kb7 {[%clk 0:01:06]}  Rb3+ {[%clk 0:00:03]} 47. Kc8 {[%clk 0:01:06]}  Rb2 {[%clk 0:00:02]} 48. Rd3 {[%clk 0:00:57]}  Rxg2 {[%clk 0:00:02]} 49. Rc3 {[%clk 0:00:58]}  Rb2 {[%clk 0:00:01]} 50. Kc7 {[%clk 0:00:55]}  Ke7 {[%clk 0:00:02]} 51. Kc8 {[%clk 0:00:48]}  h4 {[%clk 0:00:02]} 52. Ra3 {[%clk 0:00:40]}  Rb1 {[%clk 0:00:01]} 53. Ra7+ {[%clk 0:00:39]}  Ke8 {[%clk 0:00:01]} 54. c7 {[%clk 0:00:39]}  Rb3 {[%clk 0:00:01]} 55. Rb7 {[%clk 0:00:38]}  Rxf3 {[%clk 0:00:02]} 56. Kb8 {[%clk 0:00:39]}  Rc3 {[%clk 0:00:01]} 57. c8=Q+ {[%clk 0:00:39]}  Rxc8+ {[%clk 0:00:02]} 58. Kxc8 {[%clk 0:00:40]}  Kf8 {[%clk 0:00:02]} 59. Kd7 {[%clk 0:00:39]}  Kg7 {[%clk 0:00:02]} 60. Ke7 {[%clk 0:00:38]}  Kg6 {[%clk 0:00:02]} 61. Rb4 {[%clk 0:00:38]}  Kf5 {[%clk 0:00:02]} 62. Kxf7 {[%clk 0:00:35]}  Kxe5 {[%clk 0:00:03]} 63. Kg6 {[%clk 0:00:35]}  Kd5 {[%clk 0:00:02]} 64. Kxg5 {[%clk 0:00:36]}  e5 {[%clk 0:00:03]} 65. Kxh4 {[%clk 0:00:36]}  e4 {[%clk 0:00:04]} 66. Kg5 {[%clk 0:00:36]}  e3 {[%clk 0:00:04]} 67. Rb1 {[%clk 0:00:36]}  Ke4 {[%clk 0:00:04]} 68. h4 {[%clk 0:00:37]}  e2 {[%clk 0:00:05]} 69. h5 {[%clk 0:00:37]}  Kd3 {[%clk 0:00:05]} 70. h6 {[%clk 0:00:38]}  Kd2 {[%clk 0:00:05]} 71. Rb2+ {[%clk 0:00:37]}  Kd3 {[%clk 0:00:05]} 72. Rxe2 {[%clk 0:00:38]}  Kxe2 {[%clk 0:00:06]} 73. h7 {[%clk 0:00:39]}  Kd3 {[%clk 0:00:05]} 74. h8=Q {[%clk 0:00:40]}  Ke4 {[%clk 0:00:05]} 75. Qf6 {[%clk 0:00:41]}  Kd3 {[%clk 0:00:05]} 76. Qf4 {[%clk 0:00:42]}  Ke2 {[%clk 0:00:05]} 77. Qe4+ {[%clk 0:00:42]}  Kd2 {[%clk 0:00:05]} 78. Qf3 {[%clk 0:00:43]}  Kc2 {[%clk 0:00:05]} 79. Qe3 {[%clk 0:00:43]}  Kd1 {[%clk 0:00:05]} 80. Qf2 {[%clk 0:00:44]}  Kc1 {[%clk 0:00:06]} 81. Qe2 {[%clk 0:00:44]}  Kb1 {[%clk 0:00:06]} 82. Qd2 {[%clk 0:00:45]}  Ka1 {[%clk 0:00:07]} 83. Kf4 {[%clk 0:00:46]} 1-0


[Site "https://www.chess.com"]

[Event "Titled Tuesday Blitz February 01 B 2022"]
[White "Abdrlauf, Elham"]
[Black "Deac, Bogdan-Daniel"]
[WhiteFideId "1533533"]
[BlackFideId "1226380"]
[WhiteElo "2334"]
[BlackElo "2646"]
[Result "1-0"]
[Round "10"]
[TimeControl "180+1"]
[Date "2022.02.01"]
[WhiteClock "0:00:06"]
[BlackClock "0:00:07"]

1. e4 {[%clk 0:02:57]}  c5 {[%clk 0:02:58]} 2. Nf3 {[%clk 0:02:57]}  g6 {[%clk 0:02:56]} 3. d4 {[%clk 0:02:57]}  Bg7 {[%clk 0:02:56]} 4. Nc3 {[%clk 0:02:56]}  cxd4 {[%clk 0:02:56]} 5. Nxd4 {[%clk 0:02:57]}  Nc6 {[%clk 0:02:56]} 6. Be3 {[%clk 0:02:57]}  Nf6 {[%clk 0:02:56]} 7. Bc4 {[%clk 0:02:57]}  O-O {[%clk 0:02:56]} 8. Bb3 {[%clk 0:02:58]}  Re8 {[%clk 0:02:55]} 9. f3 {[%clk 0:02:56]}  e6 {[%clk 0:02:46]} 10. f4 {[%clk 0:02:56]}  d6 {[%clk 0:02:45]} 11. Ndb5 {[%clk 0:02:56]}  Bf8 {[%clk 0:02:45]} 12. Qf3 {[%clk 0:02:57]}  a6 {[%clk 0:02:38]} 13. Nd4 {[%clk 0:02:57]}  Qc7 {[%clk 0:02:33]} 14. O-O-O {[%clk 0:02:49]}  Bg7 {[%clk 0:02:33]} 15. g4 {[%clk 0:02:29]}  e5 {[%clk 0:02:27]} 16. Nxc6 {[%clk 0:02:28]}  Bxg4 {[%clk 0:02:25]} 17. Qg3 {[%clk 0:01:58]}  Qxc6 {[%clk 0:01:05]} 18. Rdf1 {[%clk 0:01:43]}  exf4 {[%clk 0:00:27]} 19. Rxf4 {[%clk 0:01:37]}  Be6 {[%clk 0:00:24]} 20. Qf3 {[%clk 0:01:27]}  Nh5 {[%clk 0:00:21]} 21. Rxf7 {[%clk 0:01:25]}  Bxb3 {[%clk 0:00:20]} 22. axb3 {[%clk 0:01:23]}  Bxc3 {[%clk 0:00:21]} 23. bxc3 {[%clk 0:00:56]}  Qxc3 {[%clk 0:00:22]} 24. Rf1 {[%clk 0:00:54]}  Rac8 {[%clk 0:00:18]} 25. Rf2 {[%clk 0:00:28]}  Qa1+ {[%clk 0:00:17]} 26. Kd2 {[%clk 0:00:28]}  Qc3+ {[%clk 0:00:16]} 27. Kd1 {[%clk 0:00:26]}  d5 {[%clk 0:00:06]} 28. Rxb7 {[%clk 0:00:16]}  Qa1+ {[%clk 0:00:04]} 29. Kd2 {[%clk 0:00:10]}  Qc3+ {[%clk 0:00:04]} 30. Kd1 {[%clk 0:00:10]}  Rf8 {[%clk 0:00:05]} 31. Rf7 {[%clk 0:00:09]}  Rfe8 {[%clk 0:00:04]} 32. Rd7 {[%clk 0:00:06]}  Qa1+ {[%clk 0:00:03]} 33. Kd2 {[%clk 0:00:05]}  Qc3+ {[%clk 0:00:03]} 34. Kd1 {[%clk 0:00:06]}  Rf8 {[%clk 0:00:03]} 35. Rf7 {[%clk 0:00:07]}  Qa1+ {[%clk 0:00:03]} 36. Bc1 {[%clk 0:00:07]}  Qd4+ {[%clk 0:00:03]} 37. Bd2 {[%clk 0:00:06]}  Qxf2 {[%clk 0:00:04]} 38. Qxf2 {[%clk 0:00:03]}  Rxf7 {[%clk 0:00:05]} 39. Qd4 {[%clk 0:00:03]}  dxe4 {[%clk 0:00:05]} 40. Qxe4 {[%clk 0:00:03]}  Nf6 {[%clk 0:00:05]} 41. Qe6 {[%clk 0:00:02]}  Rd8 {[%clk 0:00:04]} 42. Kc1 {[%clk 0:00:02]}  Re8 {[%clk 0:00:04]} 43. Qxa6 {[%clk 0:00:02]}  Ne4 {[%clk 0:00:05]} 44. Be3 {[%clk 0:00:02]}  Nf6 {[%clk 0:00:04]} 45. Bd4 {[%clk 0:00:02]}  Nh5 {[%clk 0:00:05]} 46. Qb5 {[%clk 0:00:02]}  Rd8 {[%clk 0:00:04]} 47. Bc3 {[%clk 0:00:01]}  Ng7 {[%clk 0:00:05]} 48. Qb4 {[%clk 0:00:02]}  h6 {[%clk 0:00:05]} 49. Kb2 {[%clk 0:00:02]}  Kh7 {[%clk 0:00:04]} 50. Qb6 {[%clk 0:00:03]}  Re8 {[%clk 0:00:04]} 51. h4 {[%clk 0:00:03]}  Re6 {[%clk 0:00:05]} 52. Qc5 {[%clk 0:00:03]}  Re4 {[%clk 0:00:05]} 53. Bxg7 {[%clk 0:00:02]}  Kxg7 {[%clk 0:00:03]} 54. h5 {[%clk 0:00:03]}  Rg4 {[%clk 0:00:03]} 55. Qe5+ {[%clk 0:00:03]}  Kh7 {[%clk 0:00:03]} 56. Qe6 {[%clk 0:00:03]}  Rff4 {[%clk 0:00:03]} 57. Qe7+ {[%clk 0:00:03]}  Kg8 {[%clk 0:00:03]} 58. Qd8+ {[%clk 0:00:03]}  Kf7 {[%clk 0:00:03]} 59. Qd7+ {[%clk 0:00:03]}  Kf6 {[%clk 0:00:03]} 60. Qd6+ {[%clk 0:00:03]}  Kf7 {[%clk 0:00:04]} 61. hxg6+ {[%clk 0:00:03]}  Kg7 {[%clk 0:00:04]} 62. c4 {[%clk 0:00:02]}  h5 {[%clk 0:00:03]} 63. c5 {[%clk 0:00:02]}  Rf2+ {[%clk 0:00:03]} 64. Ka3 {[%clk 0:00:02]}  Rf6 {[%clk 0:00:03]} 65. Qd7+ {[%clk 0:00:02]}  Kxg6 {[%clk 0:00:04]} 66. c6 {[%clk 0:00:03]}  Rg3 {[%clk 0:00:03]} 67. c7 {[%clk 0:00:03]}  Rff3 {[%clk 0:00:04]} 68. c8=Q {[%clk 0:00:03]}  Rxb3+ {[%clk 0:00:03]} 69. Ka2 {[%clk 0:00:03]}  Ra3+ {[%clk 0:00:04]} 70. Kb2 {[%clk 0:00:04]}  Rgb3+ {[%clk 0:00:04]} 71. Kc2 {[%clk 0:00:05]}  Rc3+ {[%clk 0:00:05]} 72. Qxc3 {[%clk 0:00:05]}  Rxc3+ {[%clk 0:00:06]} 73. Kxc3 {[%clk 0:00:06]}  Kg5 {[%clk 0:00:06]} 74. Qh3 {[%clk 0:00:07]}  Kf4 {[%clk 0:00:07]} 75. Qxh5 {[%clk 0:00:06]} 1-0


[Site "https://www.chess.com"]